Cogmind - Beta 15 @@@ ROGUE MODE // 2025.07.28 @ 23:38:40 Player: LightKnight Result: Self-destructed Performance ------------- Evolutions (8) 4000 Regions Visited (23) 4600 Robots Destroyed (302) 1510 Value Destroyed (13849) 13849 Prototype IDs (124) 2480 Alien Tech Used (3) 600 Bonus (11837) 11837 TOTAL SCORE: 38876 Bonus ------- Triggered High Security 1000 High Alert Combat Kills 3045 Follower Combat Kills 3542 Network Hubs Disabled 200 Registered with UFD 300 Met Optimus in HQ 500 Met Zhirov 300 Built Enhanced Grunts 300 Met R17 at Cetus 500 Found Hidden Lab 3000 Met R17 at Research 2000 Met Optimus at Protoforge 1000 Friendly Fire -3850 Cogmind --------- Core Integrity 504/1450 Matter 300/300 Energy 100/100 System Corruption 36% Temperature Cool (12) Movement Flying (125) Ox1 Location -2/Protoforge Parts ------- > --- POWER (3) -------- (None) > --- PROPULSION (4) --- Impulse Thruster Array > --- UTILITY (10) ----- Concept Phasing Heat Sink (fused) Concept Phasing Heat Sink (fused) Large Storage Unit Experimental Optical Array Experimental Core Analyzer Experimental Armor Integrity Analyzer Centrium Light Armor Plating (fused) Advanced Hacking Suite A0-MCA's Component Scanner > --- WEAPON (6) ------- Plasma Lance > --- INVENTORY (15) --- Xenon Bombardment Thruster Improved Target Analyzer Precision Phase Gun Concept Variable Chargecaster Concept XC Strikerail Peak State ------------ > --- POWER ------------ Antimatter Reactor Cooled Antimatter Reactor Quantum Reactor > --- PROPULSION ------- Advanced Heavy Siege Treads Advanced Heavy Siege Treads > --- UTILITY ---------- Advanced Heat Sink Advanced Heat Sink High-capacity Storage Unit Enhanced Optical Array Advanced Targeting Computer Advanced Target Analyzer Improved Weapon Cycler Concept Core Shell AEGIS Remote Shield Advanced Hacking Suite > --- WEAPON ----------- Tachyon Dispersion Ray Precision Phase Gun Enhanced Quantum Rifle Enhanced Quantum Rifle Enhanced Quantum Rifle Concept Variable Chargecaster > --- INVENTORY -------- Quantum Reactor Quantum Reactor Biometal Medium Treads Biometal Medium Treads Biometal Heavy Treads Biometal Heavy Treads Advanced Heavy Siege Treads Advanced Coolant Injector Advanced Energy Well A0-MCA's Component Scanner Tachyon Dispersion Ray Tachyon Dispersion Ray Advanced Variable Charge Gun Enhanced Quantum Rifle Heavy Proton Cannon Hellfire Missile Launcher Hellfire Missile Launcher [Rating: 197] Favorites ----------- Power Quantum Reactor Engine Light Deuterium Engine Power Core Light Nuclear Core Reactor Quantum Reactor Propulsion Light Treads Treads Light Treads Leg Aluminum Leg Hover Unit Improved Antigrav System Flight Unit Impulse Thruster Array Utility Advanced Heat Sink Device Advanced Heat Sink Storage High-capacity Storage Unit Processor Enhanced Optical Array Hackware Advanced Hacking Suite Protection Improved Light Armor Plating Weapon Heavy Assault Rifle Energy Gun Advanced Variable Charge Gun Energy Cannon Heavy Disruptor Cannon Ballistic Gun Heavy Assault Rifle Ballistic Cannon Hardcell Cannon Launcher Proton Missile Launcher Special Weapon CPS Tube Slashing Weapon Great Axe Piercing Weapon Plasma Lance Special Melee Weapon Improved Datajack Build | -11 -10 -10 -9 -9 -9 -9 -6 -6 -6 -6 -6 -5 -4 -4 -4 -4 -3 -3 -3 -3 -2 -2 -2 ------- Run | Yrd Mat Min Mat Sto Rec Scr Fac Ext Cet Arc Hub Fac Fac Upp Upp Zhi Pro Res Arm Lab Res Tes Frg Slots Evolved 16 | . . . 2 . . . 6 . . . . 2 2 . . . . 2 . . 2 . . Power 2 | . . . . . . . 1 . . . . . . . . . . . . . 1 . . Propulsion 2 | . . . . . . . 2 . . . . . . . . . . . . . . . . Utility 8 | . . . . . . . 3 . . . . 2 . . . . . 2 . . 1 . . Weapon 4 | . . . 2 . . . . . . . . . 2 . . . . . . . . . . Parts Attached 213 | . 10 . 3 3 1 10 18 13 12 1 3 16 6 8 10 3 . 29 11 2 10 2 42 Power 26 | . . . . 1 . . 1 2 2 . . 2 1 2 3 . . 4 3 . 2 . 3 Engine 5 | . . . . . . . 1 1 . . . . . . 1 . . 1 . . . . 1 Core 6 | . . . . 1 . . . 1 . . . . 1 2 1 . . . . . . . . Reactor 15 | . . . . . . . . . 2 . . 2 . . 1 . . 3 3 . 2 . 2 Propulsion 39 | . 2 . . 2 1 4 4 4 2 . 1 . . 1 2 . . 3 1 . 1 . 11 Treads 31 | . 2 . . 2 1 4 4 4 2 . 1 . . 1 2 . . 3 1 . 1 . 3 Leg . | . . . . . . . . . . . . . . . . . . . . . . . . Wheel . | . . . . . . . . . . . . . . . . . . . . . . . . Hover 1 | . . . . . . . . . . . . . . . . . . . . . . . 1 Flight 7 | . . . . . . . . . . . . . . . . . . . . . . . 7 Utility 75 | . 4 . 1 . . 1 6 4 2 . 1 12 1 3 3 3 . 8 2 1 3 . 20 Device 36 | . . . . . . . 3 2 1 . . 9 1 3 3 . . 6 2 1 . . 5 Storage 7 | . 2 . . . . 1 . 1 . . . . . . . 2 . . . . . . 1 Processor 14 | . . . . . . . 3 1 . . 1 1 . . . . . 2 . . . . 6 Hackware 3 | . . . . . . . . . . . . . . . . . . . . . 3 . . Protection 15 | . 2 . 1 . . . . . 1 . . 2 . . . 1 . . . . . . 8 Artifact . | . . . . . . . . . . . . . . . . . . . . . . . . Weapon 73 | . 4 . 2 . . 5 7 3 6 1 1 2 4 2 2 . . 14 5 1 4 2 8 Energy Gun 31 | . 1 . . . . 2 . 1 2 1 . 1 . 1 1 . . 8 3 1 3 . 6 Energy Cannon 5 | . . . . . . . 1 . . . . 1 . 1 . . . . 1 . . 1 . Ballistic Gun 22 | . 3 . 2 . . . 4 . 3 . 1 . 4 . 1 . . 3 . . . . 1 Ballistic Cannon 4 | . . . . . . . . 1 . . . . . . . . . 2 1 . . . . Launcher 5 | . . . . . . . 1 1 . . . . . . . . . 1 . . 1 1 . Special Weapon 2 | . . . . . . 1 . . 1 . . . . . . . . . . . . . . Impact Weapon . | . . . . . . . . . . . . . . . . . . . . . . . . Slashing Weapon 2 | . . . . . . 1 1 . . . . . . . . . . . . . . . . Piercing Weapon 1 | . . . . . . . . . . . . . . . . . . . . . . . 1 Special Melee Weapon 1 | . . . . . . 1 . . . . . . . . . . . . . . . . . Unidentified Prototypes 32 | . . . . . . 1 . 1 4 . . . 1 . . 4 . 3 5 3 2 2 6 Corrupted Parts 2 | . . . . . . . . . . . 2 . . . . . . . . . . . . System Corruption 18 | . . . . . . . . . . . 18 . . . . . . . . . . . . Parts Lost 87 | . 2 . . 1 . . 6 3 2 . . 10 2 7 7 . 2 9 3 . . 2 31 Power 18 | . . . . 1 . . 1 . 1 . . 2 . 2 3 . 1 . 1 . . . 6 Propulsion 15 | . . . . . . . 3 2 . . . 1 . 1 1 . . 1 . . . . 6 Utility 20 | . . . . . . . . . . . . 3 1 2 . . . 1 . . . 2 11 Weapon 34 | . 2 . . . . . 2 1 1 . . 4 1 2 3 . 1 7 2 . . . 8 Highest Loss Streak 13 | . 2 . . 1 . . 5 2 2 . . 5 1 7 6 . 1 3 1 . . 2 13 To Critical Strikes 4 | . . . . . . . . . 1 . . 1 1 . . . . 1 . . . . . Average Backups 13 | . 10 14 13 13 14 14 14 12 16 17 17 15 13 16 16 18 17 18 18 17 17 17 6 Power . | . 1 1 1 . . . . . 2 2 2 1 . . 1 1 1 1 2 3 2 2 . Propulsion 3 | . 2 3 3 5 6 5 3 2 2 3 3 2 3 4 4 4 4 4 4 5 5 5 1 Utility 4 | . 2 2 2 3 3 3 4 4 5 5 5 4 4 8 8 9 11 8 5 4 2 2 1 Weapon 3 | . 4 7 5 5 5 3 3 2 5 7 7 7 4 3 . 3 . 3 5 5 6 6 2 Tool/Special . | . . . . . . . . . . . . . . . . . . . . . . . . Unused Backups 51 | . 9 . 2 2 . 6 1 1 7 . . 2 1 1 . . . 4 1 1 2 3 8 Power 7 | . 2 . . 1 . . . . 3 . . . . . . . . . 1 . . . . Propulsion 18 | . 4 . . 1 . 2 . . 3 . . . . . . . . 3 . . 1 1 3 Utility 11 | . 1 . 1 . . 1 . 1 1 . . 1 . 1 . . . 1 . . . . 3 Weapon 14 | . 2 . . . . 3 1 . . . . 1 1 . . . . . . 1 1 2 2 Tool/Special 1 | . . . 1 . . . . . . . . . . . . . . . . . . . . Average Slot Usage (%) 84 | . 98 100 99 100 100 96 98 98 81 85 86 87 86 72 72 54 68 82 85 88 89 89 64 Engine 2 | . 14 14 11 5 . . 6 6 3 . . . . . . . . . . . . . 2 Core 4 | . . . . 5 11 10 5 5 . . . . 5 9 7 5 5 . . . . . . Reactor 3 | . . . . . . . . . 6 13 13 10 5 . 2 5 4 6 8 9 13 13 1 Treads 13 | . 23 28 22 22 22 21 25 25 12 13 13 11 10 10 9 10 10 11 9 9 8 8 1 Flight 1 | . . . . . . . . . . . . . . . . . . . . . . . 5 Device 9 | . . . . . . . 9 12 6 6 6 17 18 15 14 12 10 21 22 22 18 17 8 Storage 6 | . 14 14 11 11 11 10 6 6 6 6 6 5 5 5 5 5 5 4 9 9 5 4 2 Processor 7 | . . . . . . . 15 12 13 13 13 7 5 5 5 5 5 7 9 9 8 8 18 Hackware 1 | . . . . . . . . . . . . . . . . . . . . . 8 11 4 Protection 5 | . 13 14 11 11 11 10 . . 5 6 6 7 5 . . 2 5 1 . . . . 7 Energy Gun 7 | . 7 . . . . 4 7 1 7 5 5 1 4 4 11 2 15 12 21 28 26 25 5 Ballistic Gun 16 | . 20 28 43 44 44 34 16 9 14 20 20 20 22 15 9 5 5 9 . . . . 1 Peak Build Rating 197 | . 11 11 18 19 19 30 55 69 126 126 126 142 144 147 149 140 140 153 158 165 188 192 197 Average Rating 95 | . 9 11 16 18 19 21 46 62 104 125 125 136 140 143 142 113 133 141 147 158 182 187 136 On Entrance 94 | 6 6 11 11 17 19 19 26 55 66 126 126 126 118 144 147 136 140 126 147 158 165 188 174 Naked Turns 122 | . . . . . . 122 . . . . . . . . . . . . . . . . . Heaviest Build 150 | 14 34 34 40 40 40 60 59 73 111 111 112 124 117 113 112 89 83 122 127 132 148 149 150 Greatest Support 160 | 20 40 40 40 40 40 42 103 103 160 160 160 160 160 160 160 160 160 160 150 150 160 160 160 Greatest Overweight (x) 2 | . 2 . . . . 1 1 . . . . . . . . . . . . . . . 2 Average Overweight (x) . | . . . . . . . . . . . . . . . . . . . . . . . . Largest Inventory Capacity 20 | . 15 15 15 15 15 20 15 15 20 20 20 20 20 20 20 20 20 20 20 20 20 20 20 Average Capacity 16 | . 13 15 15 15 15 15 15 15 19 20 20 20 20 20 20 20 20 20 20 20 20 20 11 Most Carried 20 | . 14 15 15 15 15 19 15 15 20 20 20 20 20 20 20 20 18 20 20 20 20 20 20 Average Carried 14 | . 10 14 13 14 15 14 14 13 18 20 19 18 18 18 17 19 18 19 18 19 19 19 8 Final Capacity 20 | 8 15 15 15 15 15 15 15 15 20 20 20 20 20 20 20 20 20 20 20 20 20 20 15 Final Carried 20 | 6 14 15 14 15 15 15 10 15 20 20 20 20 20 20 15 18 18 17 20 20 20 20 5 Class Distribution -------------------- 24% | Scavenger-Executioner 18% | Commander-Tank 12% | Scavenger-Mutant 7% | Mutant 7% | Scavenger-Tank 6% | Skirmisher 5% | Scavenger-Skirmisher 4% | Tank 3% | Scavenger-Sprinter Dominant Class ---------------- Mutant | -10/Materials Mutant | -10/Mines Tank | -9/Materials Tank | -9/Storage Tank | -9/Recycling Commander-Tank | -9/Scraptown Skirmisher | -6/Factory Skirmisher | -6/Extension Commander-Tank | -6/Cetus Commander-Tank | -6/Archives Commander-Tank | -6/Hub_04(d) Scavenger-Tank | -5/Factory Scavenger-Executioner | -4/Factory Scavenger-Executioner | -4/Upper Caves Scavenger-Executioner | -4/Upper Caves Scavenger-Mutant | -4/Zhirov Scavenger-Skirmisher | -3/Proximity Caves Scavenger-Executioner | -3/Research Scavenger-Executioner | -3/Armory Scavenger-Executioner | -3/Lab Hacker-Executioner | -2/Research Hacker-Executioner | -2/Testing Scavenger-Mutant | -2/Protoforge Resources | -11 -10 -10 -9 -9 -9 -9 -6 -6 -6 -6 -6 -5 -4 -4 -4 -4 -3 -3 -3 -3 -2 -2 -2 ----------- Run | Yrd Mat Min Mat Sto Rec Scr Fac Ext Cet Arc Hub Fac Fac Upp Upp Zhi Pro Res Arm Lab Res Tes Frg Matter Collected 10137 | 200 413 11 83 409 166 190 826 539 252 193 99 1739 543 471 305 116 369 1320 155 . 275 52 1411 Remotely . | . . . . . . . . . . . . . . . . . . . . . . . . Salvage Created 16020 | . 877 . 122 680 389 . 1251 1368 96 87 290 3405 1155 505 551 116 167 1369 349 . 275 1018 1950 Parts 747 | . 57 . 10 36 21 . 57 71 8 2 8 190 53 25 21 . 5 41 16 . 14 38 74 Haulers Intercepted 7 | . 2 . . 1 . . . . . . 2 1 . . . . . . . . . . 1 Recyclers Shooed 12 | . 2 . . 1 . . 1 3 . . . 4 . . . . . . . . . 1 . Parts Field Recycled . | . . . . . . . . . . . . . . . . . . . . . . . . Retrieved Matter . | . . . . . . . . . . . . . . . . . . . . . . . . Parts Self-Destructed 39 | . . . . . . . . . . . . . . 19 15 . 5 . . . . . . Prevented 6 | . . . . . . . . . . . . . . 1 5 . . . . . . . . Kills | -11 -10 -10 -9 -9 -9 -9 -6 -6 -6 -6 -6 -5 -4 -4 -4 -4 -3 -3 -3 -3 -2 -2 -2 ------- Run | Yrd Mat Min Mat Sto Rec Scr Fac Ext Cet Arc Hub Fac Fac Upp Upp Zhi Pro Res Arm Lab Res Tes Frg Combat Hostiles Destroyed 239 | . 20 . 2 16 6 . 21 23 1 1 . 46 15 7 7 . 2 20 5 . 4 12 31 Melee 6 | . . . . . . . . . . . . . . . . . . . . . . . 6 Guns 180 | . 20 . 2 16 6 . 15 4 1 1 . 33 15 6 7 . 2 12 2 . 4 11 23 Cannons 16 | . . . . . . . . 9 . . . 4 . 1 . . . 2 . . . . . AOE 26 | . . . . . . . 3 8 . . . 9 . . . . . 4 1 . . 1 . Classes Destroyed 27 | . 5 . 2 2 2 . 2 3 . . . 3 . 2 . . . 3 . . . . 3 Worker 16 | . 2 . 2 . 1 . 3 . . . . 7 . . . . . . . . . 1 . Builder 14 | . . . . 1 . . 1 2 . . 1 6 2 . . . . . . . . . 1 Tunneler 1 | . . . . . . . . 1 . . . . . . . . . . . . . . . Hauler 8 | . 2 . . 1 . . . . . . 2 1 . . . . . . . . . . 2 Recycler 7 | . . . . . 1 . . . . . . 3 . . . . . 3 . . . . . Minesweeper 2 | . . . . . . . . . . . . . . 1 . . 1 . . . . . . Mechanic 2 | . . . . . . . . . . . . . . . . . . . . . . . 2 Operator 1 | . . . . . . . . . . . . . . . . . . . . . . . 1 Drone 13 | . . . . . . . . . . . . . . . . . . . . . . . 13 Watcher 7 | . 3 . . . . . . . 1 . . 2 . . . . . . 1 . . . . Swarmer 42 | . 6 . . 4 . . 3 4 . . . 10 . 4 . . . 10 . . 1 . . Saboteur 2 | . . . . . . . . . . . . 1 . . . . . . . . . . 1 Grunt 70 | . 14 . 1 7 1 . 11 10 . . . 12 4 . 3 . . . 1 . . 4 2 Brawler 3 | . . . . . . . . . . . . . 2 . 1 . . . . . . . . Duelist 7 | . . . 1 . . . 1 . . . . 3 1 . . . . . . . . . 1 Protector 1 | . . . . . 1 . . . . . . . . . . . . . . . . . . Sentry 31 | . . . . 5 4 . . 7 . 1 . . 4 1 1 . . 3 . . 1 . 4 Demolisher 1 | . . . . . . . . . . . . . . . . . . 1 . . . . . Specialist 1 | . . . . . . . . . . . . 1 . . . . . . . . . . . Hunter 36 | . . . . . . . 2 . . . . 16 2 . 2 . 2 3 1 . 2 5 1 Programmer 19 | . . . . . . . 4 . . . . 3 2 1 . . . . 3 . . 3 3 Behemoth 2 | . . . . . . . . 1 . . . . . 1 . . . . . . . . . Cetus Guard 1 | . . . . . . . . . 1 . . . . . . . . . . . . . . Enhanced Grunt 1 | . . . . . . . . . . . . 1 . . . . . . . . . . . Hotshot 4 | . . . . . . . . . . . . . . . . . . . . . . . 4 Immortal 2 | . . . . . . . . . . . . . . . . . . . . . . . 2 Striker 3 | . . . . . . . . . . . . . . . . . . 3 . . . . . Scrapoid 1 | . . . . . . . . . . . . 1 . . . . . . . . . . . Zionite 1 | . . . 1 . . . . . . . . . . . . . . . . . . . . Samaritan 2 | . . . . . . . . . . . . . . 2 . . . . . . . . . Thug 1 | . . . . . . . . 1 . . . . . . . . . . . . . . . Savage 1 | . . . . . . . . 1 . . . . . . . . . . . . . . . Guerrilla 1 | . . . . . . . . . . . 1 . . . . . . . . . . . . Revision 1 | . . . . . . . . . . . . . . . . . . 1 . . . . . Best Kill Streak 10 | . 5 . 2 5 3 . 4 6 2 1 3 10 8 4 4 . 2 6 3 . 2 7 5 Combat Bots Only 10 | . 4 . 2 3 2 . 4 6 1 1 . 10 5 4 4 . 2 6 2 . 2 6 5 Max Kills in Single Turn 5 | . 2 . 2 1 1 . 2 3 1 1 3 5 2 2 1 . 1 2 2 . 1 2 2 Gunslinging 1 | . 1 . . . . . . . . . . . . 1 . . . . . . . . 1 Exploded 5 | . . . . . . . 1 3 . . . 5 . . . . . 2 1 . . 1 . Melee 1 | . . . . . . . . . . . . . . . . . . . . . . . 1 Uniques/NPCs Destroyed 1 | . . . . . . . . . 1 . . . . . . . . . . . . . . A7 (-6/Cetus) Combat | -11 -10 -10 -9 -9 -9 -9 -6 -6 -6 -6 -6 -5 -4 -4 -4 -4 -3 -3 -3 -3 -2 -2 -2 -------- Run | Yrd Mat Min Mat Sto Rec Scr Fac Ext Cet Arc Hub Fac Fac Upp Upp Zhi Pro Res Arm Lab Res Tes Frg Hostile Shots Fired 1590 | . 84 3 2 48 22 . 126 219 11 10 . 219 73 44 84 . 55 124 79 . 19 68 300 Missed 466 | . 20 . . 15 11 . 46 85 5 3 . 52 27 7 17 . 14 38 28 . 5 19 74 Hits 1124 | . 64 3 2 33 11 . 80 134 6 7 . 167 46 37 67 . 41 86 51 . 14 49 226 Melee 14 | . . . . . . . 1 . . . . 4 1 . 2 . . 5 . . . . 1 Projectile 1110 | . 64 3 2 33 11 . 79 134 6 7 . 163 45 37 65 . 41 81 51 . 14 49 225 AOE 6 | . . . . . . . . . . . . . . . . . . 6 . . . . . Critical Strikes 54 | . . . . 1 1 . 3 2 2 1 . 9 4 . 3 . . 5 . . 1 2 20 Actively Blocked 3 | . . . . . . . . . . . . . . . . . . . . . . . 3 Part Disruptions 1 | . . . . . . . . . . . . . 1 . . . . . . . . . . Damage Taken 21503 | . 662 25 32 441 141 . 1196 1079 161 181 93 2954 817 927 1386 . 758 2099 617 . 130 653 7151 Core 1839 | . 81 . 17 38 26 . 52 111 . 20 . 202 168 84 16 . 55 71 38 . 15 23 822 Absorbed by Shields 2892 | . . . . . 9 . 9 318 46 . . 232 . . . . . 306 224 . 127 467 1154 Reduced by Siege Mode 579 | . . . . . . . . . . . . 3 10 19 146 . 57 100 . . 12 69 163 Redirected to Shielding 804 | . . . . . . . . . . . . . . . . . 74 36 . . . . 694 Ignored by Resistances 290 | . . . . . . . . . . . . . . . . . . 107 183 . . . . Regen/Repaired (Parts) 119 | . 119 . . . . . . . . . . . . . . . . . . . . . . Core Remaining (%) 82 | 100 . 67 . . . 79 . . . . 78 79 . . . . 71 . . 100 . . . Volleys Fired 745 | . 78 . 5 32 13 . 49 63 15 10 6 106 33 30 31 9 9 65 35 7 9 22 118 Largest 6 | . 2 . 4 4 4 . 4 4 4 3 4 4 6 6 5 1 5 6 6 2 6 6 6 Hottest 565 | . 70 . 92 92 92 . 191 188 185 105 185 240 295 250 336 80 306 466 476 130 565 420 494 Shots Fired 2366 | . 156 . 20 128 52 . 148 125 44 30 21 382 182 83 103 9 38 273 100 9 54 123 286 Gun 2200 | . 156 . 20 128 52 . 131 59 40 30 21 365 175 74 97 9 38 236 97 9 54 123 286 Cannon 129 | . . . . . . . 4 53 . . . 14 7 9 6 . . 35 1 . . . . Launcher 33 | . . . . . . . 13 13 . . . 3 . . . . . 2 2 . . . . Special 4 | . . . . . . . . . 4 . . . . . . . . . . . . . . Kinetic 1334 | . 99 . 20 128 52 . 101 71 28 30 15 345 155 59 34 . 10 130 . . . . 57 Thermal 799 | . 57 . . . . . 30 12 12 . 6 20 20 15 63 9 28 111 87 9 44 94 182 Explosive 9 | . . . . . . . . 2 . . . 3 . . . . . 2 2 . . . . Electromagnetic 220 | . . . . . . . 17 40 . . . 14 7 9 6 . . 30 11 . 10 29 47 Robot Hit Streak 36 | . 10 . 12 8 11 . 8 11 12 7 . 15 10 29 27 5 14 16 11 . 15 14 36 Robot Miss Streak 7 | . 5 . 2 3 1 . 4 5 4 2 . 7 7 2 4 1 2 6 4 . 3 2 3 Penetration Max 1 | . . . . . . . . . 1 . . 1 1 . . . . 1 . . . . . Secondary Targets 39 | . 3 . 1 2 1 . 2 . . . . 12 5 2 3 . . 2 . . . 2 4 Max Gunslinging Chain 1 | . 1 . 1 1 1 . 1 . . . . 1 1 1 1 . . 1 . . . 1 1 Shots Hit Robots 1417 | . 98 . 14 62 35 1 88 83 31 20 . 221 88 62 57 8 27 153 61 . 29 83 196 Core Hits 644 | . 39 . 7 26 11 . 56 67 13 5 5 117 39 21 19 3 8 59 25 . 12 35 77 Critical Kills 30 | . 1 . . . . . . . 2 . . 16 8 . 1 . . 1 . . . . 1 Critical Parts Destroyed 49 | . 1 . . . . . . . . 4 . 26 3 . 1 . 2 11 . . . . 1 Critical Strikes 102 | . 3 . . . . . . 1 4 6 . 46 12 1 3 . 2 14 1 . . . 9 Burn 9 | . 1 . . . . . . . . . . . . . . . . . 1 . . . 7 Destroy 90 | . 2 . . . . . . . 4 6 . 45 12 1 3 . 2 13 . . . . 2 Blast 2 | . . . . . . . . 1 . . . . . . . . . 1 . . . . . Corrupt 1 | . . . . . . . . . . . . 1 . . . . . . . . . . . Melee Attacks 16 | . . . . . . 1 4 . . . . . . . . . . . . . . . 11 Impact . | . . . . . . . . . . . . . . . . . . . . . . . . Slashing 4 | . . . . . . . 4 . . . . . . . . . . . . . . . . Piercing 11 | . . . . . . . . . . . . . . . . . . . . . . . 11 Sneak Attacks 13 | . . . . . . 1 1 . . . . . . . . . . . . . . . 11 Combat Hostiles . | . . . . . . . . . . . . . . . . . . . . . . . . Follow-up Attacks . | . . . . . . . . . . . . . . . . . . . . . . . . Damage Inflicted 43248 | . 1371 10 260 1063 635 . 2693 3381 789 518 634 8052 2928 1676 1450 157 773 4728 2012 . 803 2777 6538 Guns 33650 | . 1334 . 235 1058 589 . 1569 1141 789 518 . 6902 2782 1508 1316 157 773 2979 1562 . 803 2383 5252 Cannons 2673 | . . . . . . . . 1152 . . . 331 146 168 134 . . 709 33 . . . . Explosions 5683 | . . . . . . . 1029 1088 . . 634 761 . . . . . 1040 417 . . 394 320 Melee 1052 | . . . . . . . 86 . . . . . . . . . . . . . . . 966 Ramming 190 | . 37 10 25 5 46 . 9 . . . . 58 . . . . . . . . . . . Kinetic 20131 | . 905 . 235 1058 589 . 1123 1325 520 518 . 6611 2570 1207 575 . 129 1676 . . . . 1090 Thermal 14233 | . 429 . . . . . 539 326 269 . . 291 212 301 741 157 644 1760 1403 . 736 2425 4000 Explosive 2685 | . . . . . . . . 577 . . . 761 . . . . . 930 417 . . . . Electromagnetic 4957 | . . . . . . . 936 1153 . . 634 331 146 168 134 . . 362 192 . 67 352 482 Impact . | . . . . . . . . . . . . . . . . . . . . . . . . Slashing 86 | . . . . . . . 86 . . . . . . . . . . . . . . . . Piercing 966 | . . . . . . . . . . . . . . . . . . . . . . . 966 Highest Corruption 36 | . 1 1 . . . . 4 1 . . 23 5 2 2 2 2 2 . 1 1 . 7 36 Average Corruption 12 | . 1 1 . . . . 3 1 . . 11 3 1 2 2 2 2 . 1 1 . 6 31 Corruption Purged 10 | . . . . . . . 4 1 . . . 5 . . . . . . . . . . . Corruption Blocked . | . . . . . . . . . . . . . . . . . . . . . . . . Effects 431 | . 7 4 . . . . 19 7 . . 1 28 3 21 25 3 8 . 4 2 . 5 294 Message Errors 117 | . 2 1 . . . . 4 3 . . . 8 . 6 5 . 1 . 3 . . 1 83 Matter Fused 112 | . 3 2 . . . . 3 . . . 1 6 . 7 4 1 1 . . . . 1 83 Heat Flow Errors 58 | . . . . . . . 3 1 . . . 5 . 4 4 . . . 1 1 . 1 38 Energy Discharges 45 | . . . . . . . 4 . . . . 4 1 . 6 2 1 . . . . . 27 Parts Rejected 5 | . . . . . . . . . . . . 1 1 . . . . . . . . 2 1 Parts Fused 8 | . . . . . . . 1 . . . . . . . . . . . . 1 . . 6 Data Loss (minor) 37 | . . . . . . . 3 1 . . . 2 . . 3 . 2 . . . . . 26 Data Loss (major) 12 | . 1 1 . . . . . 1 . . . 1 . . . . 1 . . . . . 7 Misfires 8 | . 1 . . . . . 1 . . . . . . 4 1 . 1 . . . . . . Alerts 8 | . . . . . . . . 1 . . . . . . 1 . 1 . . . . . 5 Misdirections 12 | . . . . . . . . . . . . . . . . . . . . . . . 12 Weapon Failures 9 | . . . . . . . . . . . . 1 1 . 1 . . . . . . . 6 Overload Shots 28 | . . . . . . . . . . . . 1 . . . . . 3 8 . 2 . 14 Effects 1 | . . . . . . . . . . . . . . . . . . . . . . . 1 Heat Surge 1 | . . . . . . . . . . . . . . . . . . . . . . . 1 Overflow Damage 408 | . . . . . . . 6 21 . . 49 38 . 53 . . . 27 . . . 8 206 Projectiles 99 | . . . . . . . . 13 . . . 17 . 53 . . . 16 . . . . . Explosions 108 | . . . . . . . 6 8 . . 49 20 . . . . . 11 . . . 8 6 Melee 201 | . . . . . . . . . . . . 1 . . . . . . . . . . 200 Knockbacks 9 | . . . 1 . . . 1 1 . . . . . . . . . 6 . . . . . Impact 2 | . . . 1 . . . 1 . . . . . . . . . . . . . . . . Kinetic 7 | . . . . . . . . 1 . . . . . . . . . 6 . . . . . Secondary . | . . . . . . . . . . . . . . . . . . . . . . . . Self-Inflicted Damage 313 | . . . . . . . . 69 . . 95 50 . . . . . 99 . . . . . Shots 4 | . . . . . . . . 1 . . 1 1 . . . . . 1 . . . . . Rammed 21 | . 4 3 2 1 3 . 2 1 . . . 5 . . . . . . . . . . . Targets Rammed 25 | . 5 3 3 1 4 . 2 1 . . . 6 . . . . . . . . . . . Kicked . | . . . . . . . . . . . . . . . . . . . . . . . . Crushed 4 | . 1 . 1 . 1 . . . . . . 1 . . . . . . . . . . . Highest Temperature 659 | . 240 . 60 207 167 . 461 165 358 39 162 406 311 303 276 . 188 419 195 108 182 193 659 Average Temperature 89 | . 58 . 26 58 59 . 142 33 157 7 66 108 94 84 92 . 77 115 99 108 100 111 91 Received Heat Transfer 3491 | . 273 . 9 174 80 . 291 358 13 45 . 352 102 54 174 . . 27 40 . 4 46 1449 Effects 20 | . . . . . . . 5 . . . . 3 3 . . . . 6 . . . . 3 Shutdowns 1 | . . . . . . . . . . . . 1 . . . . . . . . . . . Energy Bleed 3 | . . . . . . . 2 . . . . 1 . . . . . . . . . . . Interference 7 | . . . . . . . 2 . . . . . 3 . . . . . . . . . 2 Matter Decay 3 | . . . . . . . 1 . . . . . . . . . . 2 . . . . . Short Circuit 2 | . . . . . . . . . . . . 1 . . . . . . . . . . 1 Damage (major) 4 | . . . . . . . . . . . . . . . . . . 4 . . . . . Siege Activations 28 | . . . . . . . . . . . . 3 2 2 6 . 1 2 . 1 1 3 7 Total Turns 882 | . . . . . . . . . . . . 22 22 16 574 . 19 49 . 6 7 52 115 Longest Duration 291 | . . . . . . . . . . . . 10 12 14 291 . 19 29 . 6 7 30 41 Martial Activations . | . . . . . . . . . . . . . . . . . . . . . . . . Shielding Activations . | . . . . . . . . . . . . . . . . . . . . . . . . Robots Disrupted 10 | . . . . . . . . . . . . . . . . . . . . . . 5 5 Combat Hostiles 10 | . . . . . . . . . . . . . . . . . . . . . . 5 5 Robots Corrupted 8 | . . . . . . . 3 2 . . 1 . . . . . . . . . . . 2 Combat Hostiles 7 | . . . . . . . 3 2 . . . . . . . . . . . . . . 2 Parts Fried 18 | . . . . . . . 2 6 . . 3 2 . . . . . . 1 . . . 4 Impact Corruptions 1 | . . . . . . . . . . . . 1 . . . . . . . . . . . Robots Melted 4 | . . . . . . . . . . . . . . . . . . 2 2 . . . . Combat Hostiles 4 | . . . . . . . . . . . . . . . . . . 2 2 . . . . Parts Melted 55 | . 1 . . . . . 10 . . . . 1 . 1 1 . 3 8 8 . 3 7 12 Heat Transferred 19950 | . 1332 . . . . . 951 738 388 . . 358 259 407 925 296 777 2565 2340 . 925 2568 5121 Parts Sabotaged . | . . . . . . . . . . . . . . . . . . . . . . . . Parts Stolen . | . . . . . . . . . . . . . . . . . . . . . . . . Parts Stripped . | . . . . . . . . . . . . . . . . . . . . . . . . Power Chain Reactions 6 | . . . . . . . 1 . . . . . . . . . . 1 . . . 2 2 Alert | -11 -10 -10 -9 -9 -9 -9 -6 -6 -6 -6 -6 -5 -4 -4 -4 -4 -3 -3 -3 -3 -2 -2 -2 ------- Run | Yrd Mat Min Mat Sto Rec Scr Fac Ext Cet Arc Hub Fac Fac Upp Upp Zhi Pro Res Arm Lab Res Tes Frg Maximum Alert Level 5 | . . . . 2 1 . 2 3 3 2 2 5 5 . . . . . . . . 1 1 Low Security (%) 71 | . 100 100 100 33 52 . 90 46 . . 82 . . . . . . 100 100 . 100 66 93 Level 1 10 | . . . . 13 47 . 3 27 . 80 . 17 . . . . . . . . . 33 6 Level 2 6 | . . . . 53 . . 6 7 94 19 17 8 . . . . . . . . . . . Level 3 3 | . . . . . . . . 18 5 . . 17 . . . . . . . . . . . Level 4 5 | . . . . . . . . . . . . 30 85 . . . . . . . . . . Level 5 2 | . . . . . . . . . . . . 20 8 . . . . . . . . . . High Security . | . . . . . . . . . . . . 4 6 . . . . . . . . . . Max Security . | . . . . . . . . . . . . . . . . . . . . . . . . Peak Influence 2964 | . 140 35 56 544 268 . 445 1034 717 410 559 2964 1759 . . . . 180 146 . 88 270 296 Initial 1451 | . . 35 . 4 201 . . 212 571 238 129 268 1451 . . . . . 81 . . 37 93 Average 287 | . 83 2 26 324 196 . 79 346 626 356 178 1298 1445 . . . . 59 68 . 14 161 59 Influence Increases 12812 | . 623 15 112 748 374 . 891 1503 362 212 600 3738 784 175 160 . 55 664 269 . 130 411 986 Destroy 0b10 Robot/C 6140 | . 400 . 60 400 100 . 560 820 160 80 40 1640 380 140 140 . 40 400 100 . 80 240 360 Destroy 0b10 Robot/NC 440 | . 35 . 10 10 15 . 30 30 10 . 20 135 20 5 . . 5 15 5 . . 5 90 Destroy Leader 1208 | . 90 . 20 112 . . 120 94 . . 14 344 102 30 20 . 10 80 42 . 20 40 70 Allied During Kill 1505 | . . . 8 20 2 . 51 451 170 80 74 624 25 . . . . . . . . . . Successful Hack 295 | . 38 . 14 4 17 . 12 26 . . . 52 37 . . . . 14 . . 18 21 42 Select Force Hacks 300 | . 60 . . . 240 . . . . . . . . . . . . . . . . . . Disable Machine 900 | . . . . . . . 60 45 . 45 315 300 45 . . . . 30 30 . . 15 15 Anti-Garrison Action 400 | . . . . 200 . . . . . . . . . . . . . . . . . . 200 Destroy Structure 1234 | . . . . 2 . . 13 37 22 7 107 598 130 . . . . 110 62 . 12 75 59 Partial Spotted 15 | . . . . . . . . . . . . . . . . . . . . . . . 15 Lose Combat Pursuer 375 | . . 15 . . . . 45 . . . 30 45 45 . . . . 15 30 . . 15 135 Influence Decreases 12759 | . 531 107 100 244 785 105 458 915 788 437 421 1323 1989 1272 822 . 55 508 368 57 63 312 1099 Entered New Map 4562 | . . 57 . 8 315 105 . 221 450 357 241 281 1513 652 127 . . . 75 57 . 30 73 Time Decay 6465 | . 511 50 100 206 470 . 278 542 278 60 120 612 286 550 625 . 55 418 263 . 63 262 716 Lost Part 832 | . 20 . . 10 . . 60 12 20 . . 100 20 70 70 . . 90 30 . . 20 310 Lost Ally 600 | . . . . 20 . . 120 140 40 20 60 180 20 . . . . . . . . . . Purge Threat 300 | . . . . . . . . . . . . 150 150 . . . . . . . . . . Squads Dispatched 71 | . 5 . . 5 . . 11 5 . . . 19 3 . . . . 3 3 . 2 2 13 Investigation 21 | . 3 . . 1 . . 4 1 . . . 5 . . . . . 2 . . . . 5 Extermination 12 | . . . . . . . 3 . . . . 3 1 . . . . . 1 . 1 1 2 Reinforcement 31 | . 2 . . 1 . . 4 4 . . . 8 1 . . . . 1 2 . 1 1 6 Assault 4 | . . . . 1 . . . . . . . 2 1 . . . . . . . . . . Garrison 3 | . . . . 2 . . . . . . . 1 . . . . . . . . . . . Intercept . | . . . . . . . . . . . . . . . . . . . . . . . . Searches Triggered . | . . . . . . . . . . . . . . . . . . . . . . . . Construction Impeded 9 | . . . . . . . 1 2 . . . 5 1 . . . . . . . . . . Haulers Reinforced 5 | . . . . . . . 3 . . . . 1 . . . . . 1 . . . . . Active Scanning Responses . | . . . . . . . . . . . . . . . . . . . . . . . . Cargo Convoy Interrupts . | . . . . . . . . . . . . . . . . . . . . . . . . Stealth | -11 -10 -10 -9 -9 -9 -9 -6 -6 -6 -6 -6 -5 -4 -4 -4 -4 -3 -3 -3 -3 -2 -2 -2 --------- Run | Yrd Mat Min Mat Sto Rec Scr Fac Ext Cet Arc Hub Fac Fac Upp Upp Zhi Pro Res Arm Lab Res Tes Frg Distress Signals 34 | . 1 . . . . . 1 1 2 . 1 7 3 . . . . 3 3 . . 1 11 Communications Jammed . | . . . . . . . . . . . . . . . . . . . . . . . . Distress Signals . | . . . . . . . . . . . . . . . . . . . . . . . . Times Spotted 465 | . 25 3 3 19 6 . 34 43 10 3 2 91 24 7 7 . 7 41 30 . 6 16 88 Peak Tracking Total 16 | . 4 3 1 4 2 . 4 5 5 2 4 8 6 4 4 . 5 11 6 . 3 3 16 Tactical Retreats 20 | . . 1 . . . . 2 . . . 1 3 3 . . . . 1 1 . . 1 7 Traps | -11 -10 -10 -9 -9 -9 -9 -6 -6 -6 -6 -6 -5 -4 -4 -4 -4 -3 -3 -3 -3 -2 -2 -2 ------- Run | Yrd Mat Min Mat Sto Rec Scr Fac Ext Cet Arc Hub Fac Fac Upp Upp Zhi Pro Res Arm Lab Res Tes Frg Traps Triggered 13 | . . . . . . . 3 2 . . 1 2 . . . . . . 1 . . . 4 Indirectly 2 | . . . . . . . . 2 . . . . . . . . . . . . . . . Trap Hack Attempts . | . . . . . . . . . . . . . . . . . . . . . . . . Triggered . | . . . . . . . . . . . . . . . . . . . . . . . . Disarmed . | . . . . . . . . . . . . . . . . . . . . . . . . Reprogrammed . | . . . . . . . . . . . . . . . . . . . . . . . . Reused . | . . . . . . . . . . . . . . . . . . . . . . . . Traps Extracted . | . . . . . . . . . . . . . . . . . . . . . . . . Installed . | . . . . . . . . . . . . . . . . . . . . . . . . Triggered . | . . . . . . . . . . . . . . . . . . . . . . . . Machines | -11 -10 -10 -9 -9 -9 -9 -6 -6 -6 -6 -6 -5 -4 -4 -4 -4 -3 -3 -3 -3 -2 -2 -2 ---------- Run | Yrd Mat Min Mat Sto Rec Scr Fac Ext Cet Arc Hub Fac Fac Upp Upp Zhi Pro Res Arm Lab Res Tes Frg Machines Disabled 70 | . . . . . . . 4 6 1 3 21 20 3 . . . . 2 2 1 . 1 6 Max in Single Turn 20 | . . . . . . . 1 1 . 1 20 1 1 . . . . 1 1 1 . 1 2 Garrison Access 3 | . . . . 1 . . . . . . . . . . . . . . . . 1 . 1 Network Hub 1 | . . . . . . . . . . . 1 . . . . . . . . . . . . Machines Repaired . | . . . . . . . . . . . . . . . . . . . . . . . . Machines Dismantled . | . . . . . . . . . . . . . . . . . . . . . . . . Machines Sabotaged . | . . . . . . . . . . . . . . . . . . . . . . . . Overloaded Fab Kills . | . . . . . . . . . . . . . . . . . . . . . . . . Hacking | -11 -10 -10 -9 -9 -9 -9 -6 -6 -6 -6 -6 -5 -4 -4 -4 -4 -3 -3 -3 -3 -2 -2 -2 --------- Run | Yrd Mat Min Mat Sto Rec Scr Fac Ext Cet Arc Hub Fac Fac Upp Upp Zhi Pro Res Arm Lab Res Tes Frg Machines Accessed 86 | . 9 . 1 4 12 5 8 9 . . . 13 3 1 . 4 . 4 1 . 5 1 6 Terminals 45 | . 6 . 1 3 4 . 4 8 . . . 6 3 . . . . 3 1 . 4 1 1 Fabricators 1 | . . . . . . . . . . . . . . . . . . . . . . . 1 Repair Stations 1 | . 1 . . . . . . . . . . . . . . . . . . . . . . Recycling Units 25 | . 2 . . . 8 . 4 1 . . . 6 . . . . . 1 . . . . 3 Scanalyzers . | . . . . . . . . . . . . . . . . . . . . . . . . Garrison Access 4 | . . . . 1 . . . . . . . 1 . . . . . . . . 1 . 1 Total Hacks 233 | . 20 . 3 11 16 32 17 13 . . . 34 13 1 . 17 . 11 2 . 26 4 13 Successful 130 | . 13 . 2 4 12 32 7 7 . . . 10 4 1 . 17 . 3 1 . 10 1 6 Failed 101 | . 6 . 1 7 4 . 10 6 . . . 24 9 . . . . 8 1 . 15 3 7 Catastrophic 27 | . 2 . . 3 1 . 2 3 . . . 5 2 . . . . 2 . . 4 . 3 Database Lockouts 2 | . 1 . . . . . . . . . . . . . . . . . . . 1 . . Manual 123 | . 11 . 3 9 15 . 15 4 1 . . 27 5 . . . . 6 . . 17 . 10 Terminals 135 | . 15 . 3 9 8 . 10 12 . . . 24 13 . . . . 9 2 . 24 4 2 Fabricators 3 | . . . . . . . . . . . . . . . . . . . . . . . 3 Repair Stations 3 | . 3 . . . . . . . . . . . . . . . . . . . . . . Recycling Units 34 | . 2 . . . 8 . 7 1 . . . 8 . . . . . 2 . . . . 6 Scanalyzers . | . . . . . . . . . . . . . . . . . . . . . . . . Garrison Access 8 | . . . . 2 . . . . . . . 2 . . . . . . . . 2 . 2 Terminal Hacks 85 | . 6 . 2 1 2 32 2 6 . . . 2 3 1 . 17 . 1 1 . 8 1 . Record 29 | . . . . . . 24 . . . . . . . . . 5 . . . . . . . Part Schematic 6 | . . . . . 2 . . . . . . . . . . 4 . . . . . . . Robot Analysis 14 | . 1 . . . . 7 . . . . . . . . . 4 . . . . 1 1 . Prototype ID Bank 12 | . 1 . 1 . . . . 2 . . . . 1 . . 4 . . . . 3 . . Open Door 7 | . . . . . . 1 1 4 . . . . . 1 . . . . . . . . . Branch Access Points 5 | . . . 1 . . . . . . . . . 1 . . . . 1 1 . 1 . . Terminal Index 1 | . . . . . . . . . . . . . . . . . . . . . 1 . . Unreport Threat 2 | . . . . . . . . . . . . 1 1 . . . . . . . . . . Locate Traps 7 | . 3 . . 1 . . 1 . . . . 1 . . . . . . . . 1 . . Recall Extermination 1 | . . . . . . . . . . . . . . . . . . . . . 1 . . Registered Components 1 | . 1 . . . . . . . . . . . . . . . . . . . . . . Fabricator Hacks 2 | . . . . . . . . . . . . . . . . . . . . . . . 2 Load Schematic 1 | . . . . . . . . . . . . . . . . . . . . . . . 1 Build 1 | . . . . . . . . . . . . . . . . . . . . . . . 1 Repair Station Hacks 3 | . 3 . . . . . . . . . . . . . . . . . . . . . . Scan Component 2 | . 2 . . . . . . . . . . . . . . . . . . . . . . Repair 1 | . 1 . . . . . . . . . . . . . . . . . . . . . . Recycling Unit Hacks . | . . . . . . . . . . . . . . . . . . . . . . . . Scanalyzer . | . . . . . . . . . . . . . . . . . . . . . . . . Garrison Access Hacks 1 | . . . . . . . . . . . . . . . . . . . . . 1 . . Seal Access 1 | . . . . . . . . . . . . . . . . . . . . . 1 . . Unauthorized Hacks 39 | . 4 . . 3 10 . 5 1 . . . 8 1 . . . . 2 . . 1 . 4 Terminals 14 | . 2 . . 2 2 . 1 . . . . 3 1 . . . . 1 . . 1 . 1 Botnet 14 | . 2 . . 2 2 . 1 . . . . 3 1 . . . . 1 . . 1 . 1 Fabricators . | . . . . . . . . . . . . . . . . . . . . . . . . Repair Stations . | . . . . . . . . . . . . . . . . . . . . . . . . Recycling Units 23 | . 2 . . . 8 . 4 1 . . . 5 . . . . . 1 . . . . 2 Tunnel 10 | . 2 . . . 8 . . . . . . . . . . . . . . . . . . Fedlink 9 | . . . . . . . 3 1 . . . 2 . . . . . 1 . . . . 2 Scrapoids 2 | . . . . . . . 1 . . . . 1 . . . . . . . . . . . Scraphulk 2 | . . . . . . . . . . . . 2 . . . . . . . . . . . Scanalyzers . | . . . . . . . . . . . . . . . . . . . . . . . . Garrison Access 2 | . . . . 1 . . . . . . . . . . . . . . . . . . 1 Jam 2 | . . . . 1 . . . . . . . . . . . . . . . . . . 1 Data Cores Recovered . | . . . . . . . . . . . . . . . . . . . . . . . . Used . | . . . . . . . . . . . . . . . . . . . . . . . . Hacking Detections 43 | . 7 . 1 4 2 . 4 5 1 . . 6 2 . . . . 3 . . 4 1 3 Full Trace Events 5 | . 1 . . 1 1 . . . . . . . . . . . . . . . . . 2 Feedback Events 1 | . 1 . . . . . . . . . . . . . . . . . . . . . . Corruption 1 | . 1 . . . . . . . . . . . . . . . . . . . . . . Feedback Blocked . | . . . . . . . . . . . . . . . . . . . . . . . . Robot Schematics Acquired . | . . . . . . . . . . . . . . . . . . . . . . . . Robots Built . | . . . . . . . . . . . . . . . . . . . . . . . . Authchips . | . . . . . . . . . . . . . . . . . . . . . . . . Time . | . . . . . . . . . . . . . . . . . . . . . . . . Total Robot Build Rating . | . . . . . . . . . . . . . . . . . . . . . . . . Part Schematics Acquired 6 | . . . . . 2 . . . . . . . . . . 4 . . . . . . . Parts Built 1 | . . . . . . . . . . . . . . . . . . . . . . . 1 Authchips . | . . . . . . . . . . . . . . . . . . . . . . . . Time 17 | . . . . . . . . . . . . . . . . . . . . . . . 17 Total Part Build Rating 1 | . . . . . . . . . . . . . . . . . . . . . . . 1 Parts Repaired 1 | . 1 . . . . . . . . . . . . . . . . . . . . . . Time 26 | . 26 . . . . . . . . . . . . . . . . . . . . . . Parts Recycled . | . . . . . . . . . . . . . . . . . . . . . . . . Recycled Matter . | . . . . . . . . . . . . . . . . . . . . . . . . Retrieved Matter . | . . . . . . . . . . . . . . . . . . . . . . . . Retrieved Components . | . . . . . . . . . . . . . . . . . . . . . . . . Parts Scanalyzed . | . . . . . . . . . . . . . . . . . . . . . . . . Part Schematics Acquired . | . . . . . . . . . . . . . . . . . . . . . . . . Parts Damaged . | . . . . . . . . . . . . . . . . . . . . . . . . Bothacking | -11 -10 -10 -9 -9 -9 -9 -6 -6 -6 -6 -6 -5 -4 -4 -4 -4 -3 -3 -3 -3 -2 -2 -2 ------------ Run | Yrd Mat Min Mat Sto Rec Scr Fac Ext Cet Arc Hub Fac Fac Upp Upp Zhi Pro Res Arm Lab Res Tes Frg Used RIF Installer . | . . . . . . . . . . . . . . . . . . . . . . . . Robots Hacked 1 | . . . . . . 1 . . . . . . . . . . . . . . . . . Non-combat . | . . . . . . . . . . . . . . . . . . . . . . . . Combat 1 | . . . . . . 1 . . . . . . . . . . . . . . . . . Robot Hacks Applied 1 | . . . . . . 1 . . . . . . . . . . . . . . . . . parse_system 1 | . . . . . . 1 . . . . . . . . . . . . . . . . . Relay Couplers Released 6 | . . . . . . . 3 . . . . 3 . . . . . . . . . . . Programmers 6 | . . . . . . . 3 . . . . 3 . . . . . . . . . . . Fabnet Peak Effective % . | . . . . . . . . . . . . . . . . . . . . . . . . Robots Rewired 21 | . . . . . 4 . . 17 . . . . . . . . . . . . . . . Allies Hacked 3 | . . . . . . . 1 . . . . 2 . . . . . . . . . . . Hacks Repelled . | . . . . . . . . . . . . . . . . . . . . . . . . Allies | -11 -10 -10 -9 -9 -9 -9 -6 -6 -6 -6 -6 -5 -4 -4 -4 -4 -3 -3 -3 -3 -2 -2 -2 -------- Run | Yrd Mat Min Mat Sto Rec Scr Fac Ext Cet Arc Hub Fac Fac Upp Upp Zhi Pro Res Arm Lab Res Tes Frg Total Allies 45 | . . 2 . . 4 . 5 22 5 . . 7 . . . . . . . . . . . Largest Group 16 | . . 2 2 1 4 4 5 13 16 15 14 8 1 . . . . . . . . . . Highest-Rated Group 894 | . . 43 43 31 72 72 143 470 894 737 691 539 123 . . . . . . . . . . Highest-Rated Ally 159 | . . 31 31 31 27 27 31 159 152 96 96 123 123 . . . . . . . . . . Total Orders 13 | . . . . . . 3 . . 8 . . . . . 2 . . . . . . . . STAY 7 | . . . . . . 2 . . 4 . . . . . 1 . . . . . . . . FOLLOW 5 | . . . . . . 1 . . 4 . . . . . . . . . . . . . . EXPLORE 1 | . . . . . . . . . . . . . . . 1 . . . . . . . . Ally Attacks 542 | . . . 3 29 . . 63 154 44 20 10 202 17 . . . . . . . . . . Total Damage 14125 | . . . 42 370 . . 1054 3505 1464 482 195 6442 571 . . . . . . . . . . Kills 103 | . . . 1 4 . . 9 22 8 3 3 47 6 . . . . . . . . . . Allies Corrupted 5 | . . . . . . . . . . . 3 2 . . . . . . . . . . . Allies Melted 3 | . . . . . . . . . . . . . . . . . . . . . . . 3 Intel | -11 -10 -10 -9 -9 -9 -9 -6 -6 -6 -6 -6 -5 -4 -4 -4 -4 -3 -3 -3 -3 -2 -2 -2 ------- Run | Yrd Mat Min Mat Sto Rec Scr Fac Ext Cet Arc Hub Fac Fac Upp Upp Zhi Pro Res Arm Lab Res Tes Frg Active Infowar (turns) 21774 | . . . . . . . 1884 1544 615 133 259 2105 666 1588 2326 269 601 1782 663 451 487 564 5837 Optics 21774 | . . . . . . . 1884 1544 615 133 259 2105 666 1588 2326 269 601 1782 663 451 487 564 5837 Sensors 2276 | . . . . . . . 1753 523 . . . . . . . . . . . . . . . A.S.S. 4837 | . . . . . . . . . . . . . . 1465 2326 269 601 176 . . . . . IFF 50 | . . . . . . . . . . . . . . 50 . . . . . . . . . Terrain 1070 | . . . . . . . . . . . . . . . 104 . . 966 . . . . . Robot Analysis Total 14 | . 1 . . . . 7 . . . . . . . . . 4 . . . . 1 1 . Derelict Logs Recovered 7 | . . 2 . . . . . . . . . . . 2 3 . . . . . . . . Drone Launches 1 | . . . . . . . . . . . . . . . 1 . . . . . . . . Drone Recoveries 1 | . . . . . . . . . . . . . . . 1 . . . . . . . . Exploration | -11 -10 -10 -9 -9 -9 -9 -6 -6 -6 -6 -6 -5 -4 -4 -4 -4 -3 -3 -3 -3 -2 -2 -2 ------------- Run | Yrd Mat Min Mat Sto Rec Scr Fac Ext Cet Arc Hub Fac Fac Upp Upp Zhi Pro Res Arm Lab Res Tes Frg Turns Passed 30596 | . 1473 840 256 473 1185 4592 1887 1544 615 133 259 2105 666 1588 2326 269 601 1782 663 451 487 564 5837 Spaces Moved 15399 | 1 734 507 142 220 675 2898 1013 729 325 61 143 1052 328 925 994 143 344 934 360 238 279 250 2104 Core 377 | . . . . . . 242 . . . . . . . . . . . . . . . . 135 Treads 13427 | . 625 507 142 220 675 2656 1013 729 325 61 143 1052 328 925 994 143 344 934 360 238 279 250 484 Legs 110 | 1 109 . . . . . . . . . . . . . . . . . . . . . . Wheels . | . . . . . . . . . . . . . . . . . . . . . . . . Hover 573 | . . . . . . . . . . . . . . . . . . . . . . . 573 Flight 912 | . . . . . . . . . . . . . . . . . . . . . . . 912 Fastest Speed 29 | 120 120 160 160 160 160 50 160 155 156 160 160 160 160 160 160 160 160 152 152 152 152 160 29 Average Speed 147 | 120 154 160 160 160 160 156 162 158 159 160 160 160 160 160 160 160 160 157 152 152 154 160 75 Slowest Speed 260 | 120 260 160 160 160 160 240 240 160 160 160 160 160 160 160 160 160 160 160 152 152 160 160 180 Overloaded Moves . | . . . . . . . . . . . . . . . . . . . . . . . . Propulsion Burnouts . | . . . . . . . . . . . . . . . . . . . . . . . . Robots Hopped . | . . . . . . . . . . . . . . . . . . . . . . . . Potential Cave-ins 10 | . . . . . . . . . . . 3 . 3 . 2 . . 2 . . . . . Cave-ins Triggered . | . . . . . . . . . . . . . . . . . . . . . . . . Teleports 2 | . . . . . . . . . . . . . . . . . . . 1 . . . 1 Exploration Rate (%) 55 | 2 96 95 11 41 98 88 33 87 59 83 16 41 11 97 86 61 62 34 38 93 12 40 45 Regions Visited 23 Branch Regions 16 Pre-discovered Areas 20 | . 2 1 . . 8 4 1 . . . . . . . 1 3 . . . . . . . Known Exits Taken 13 | . . . 1 . . 1 1 . . . 1 1 1 1 1 1 1 1 . 1 1 . . Unknown Exits Taken 10 | 1 1 1 . 1 1 . . 1 1 1 . . . . . . . . 1 . . 1 . Scrap Searched 13 | . . 1 . . . 4 . . . . . . . 3 3 . 2 . . . . . . Spaces Dug 71 | . . . . . . . 3 . . . 25 3 11 . 15 . . 3 4 . 1 3 3 Terrain Destroyed 713 | . . . . . . . 10 35 14 6 209 171 46 20 29 . 7 81 35 . 4 33 13 Melee 3 | . . . . . . . 3 . . . . . . . . . . . . . . . . Projectile 363 | . . . . . . . . 6 14 6 28 141 46 20 29 . 7 31 9 . 4 9 13 AOE 344 | . . . . . . . 7 29 . . 181 29 . . . . . 48 26 . . 24 . Terrain Rammed . | . . . . . . . . . . . . . . . . . . . . . . . . Walls Destroyed . | . . . . . . . . . . . . . . . . . . . . . . . . Machines Disabled . | . . . . . . . . . . . . . . . . . . . . . . . . Actions | -11 -10 -10 -9 -9 -9 -9 -6 -6 -6 -6 -6 -5 -4 -4 -4 -4 -3 -3 -3 -3 -2 -2 -2 --------- Run | Yrd Mat Min Mat Sto Rec Scr Fac Ext Cet Arc Hub Fac Fac Upp Upp Zhi Pro Res Arm Lab Res Tes Frg Total 21955 | . 915 534 158 262 746 2961 1140 1009 395 74 159 1270 398 996 1658 177 372 1112 430 322 319 370 6178 Wait 4881 | . 59 24 . 3 . 2 21 45 . . 6 50 24 18 605 . 20 26 2 61 7 76 3832 Move 15376 | . 733 506 141 219 674 2897 1012 728 324 60 142 1051 327 924 993 142 343 933 359 237 278 249 2104 Hop . | . . . . . . . . . . . . . . . . . . . . . . . . Pick Up 149 | . 15 1 3 2 . 20 9 6 16 . 1 13 4 9 3 4 . 15 3 4 3 6 12 Fast Attach 136 | . 4 . . . . 10 7 5 7 2 . 10 2 2 4 5 . 24 11 3 4 5 31 Attach 112 | . 3 . 2 1 . 4 12 6 4 . 1 11 5 6 8 6 . 12 5 1 5 1 19 Detach 67 | . 3 . . . . 1 4 5 3 . . 4 . 4 2 6 . 10 3 2 5 1 14 Swap 78 | . 4 . 1 2 1 7 13 5 5 . 2 10 2 . 6 . . 3 3 2 2 1 9 Drop 163 | . 11 . 3 2 1 19 7 2 21 2 1 9 1 3 5 5 . 24 9 5 6 9 18 Fire 745 | . 78 . 5 32 13 . 49 63 15 10 6 106 33 30 31 9 9 65 35 7 9 22 118 Melee 16 | . . . . . . 1 4 . . . . . . . . . . . . . . . 11 Ram . | . . . . . . . . . . . . . . . . . . . . . . . . Kick . | . . . . . . . . . . . . . . . . . . . . . . . . Crush 25 | . 5 3 3 1 4 . 2 1 . . . 6 . . . . . . . . . . . Escape Stasis . | . . . . . . . . . . . . . . . . . . . . . . . . Rewire 197 | . . . . . 53 . . 143 . . . . . . 1 . . . . . . . . Trap . | . . . . . . . . . . . . . . . . . . . . . . . . Miscellaneous 10 | . . . . . . . . . . . . . . . . . . . . . . . 10 Route ------- -11/Scrapyard -10/Materials (discovered 5 exits: *Mat x3 / [*Min x2]) -10/Mines (discovered 3 exits: *Mat / [*Exi] / [*Sub]) -9/Materials (discovered 3 exits: Min x2 / *Sto) -9/Storage -9/Recycling (discovered 2 exits: [*Fac] / *Scr) -9/Scraptown (discovered 2 exits: *Fac x2) -6/Factory (discovered 4 exits: Fac x2 / Low / *Ext) -6/Extension (discovered 2 exits: *Fac / *Cet) -6/Cetus (discovered 2 exits: *Fac / [*Arc]) -6/Archives (discovered 3 exits: *Fac / [*Hub x2]) -6/Hub_04(d) -5/Factory (discovered 2 exits: *Fac x2) -4/Factory (discovered 3 exits: *Res / *Upp x2) -4/Upper Caves -4/Upper Caves (discovered 2 exits: *Res / *Zhi) -4/Zhirov -3/Proximity Caves -3/Research (discovered 4 exits: Res / *Arm / Qua x2) -3/Armory -3/Lab -2/Research (discovered 2 exits: *Tes x2) -2/Testing (discovered 3 exits: [*Acc] / [*Sec] / *Frg) -2/Protoforge History --------- Turn | Location | Event 1 | -11/Scrapyard | Discovered new exit (range 0) 1 | -11/Scrapyard | Entered Materials 290 | -10/Materials | Central database locked down 309 | -10/Materials | Discovered new exit (range 13) 318 | -10/Materials | Build established: Mutant 623 | -10/Materials | Discovered new exit (range 10) 690 | -10/Materials | Discovered new exit (range 8) 904 | -10/Materials | Repaired Lgt. Treads 1291 | -10/Materials | Discovered new exit (range 15) 1362 | -10/Materials | Discovered new exit (range 10) 1474 | -10/Materials | Entered Mines 1534 | -10/Mines | Received a Rocket Launcher from a helpful Derelict 1556 | -10/Mines | Deemed a non-threat by the Exiles lab entrance 1556 | -10/Mines | Discovered new exit (range 5) 1622 | -10/Mines | Learned location of Mines (-9) 1667 | -10/Mines | Met a Derelict testing a Signal Generator 1679 | -10/Mines | Found Signal Generator 2037 | -10/Mines | Discovered new exit (range 15) 2099 | -10/Mines | Discovered new exit (range 12) 2314 | -10/Mines | Entered Materials 2314 | -9/Materials | Accompanied by 2 allies 2314 | -9/Materials | Evolved 2 slots: Weapon x2 2314 | -9/Materials | Discovered new exit (range 14) 2315 | -9/Materials | Identified exit to Mines 2319 | -9/Materials | Led the pair of lost Derelicts to an unsafe place 2519 | -9/Materials | Identified exit to Storage 2570 | -9/Materials | Entered Storage 2570 | -9/Storage | Accompanied by 1 ally 2614 | -9/Storage | Garrison activated, responded to threat 2626 | -9/Storage | Build established: Tank 2970 | -9/Storage | First assault squad dispatched 3037 | -9/Storage | Used back door to open Recycling access 3037 | -9/Storage | Discovered new exit (range 5) 3043 | -9/Storage | Entered Recycling 3044 | -9/Recycling | Met a Zionite searching for Scraptown 3973 | -9/Recycling | Discovered new exit (range 16) 4000 | -9/Recycling | Build established: Commander-Tank 4179 | -9/Recycling | Scanned before Scraplab entrance 4203 | -9/Recycling | Entered Scraplab 4215 | -9/Recycling | Discovered new exit (range 3) 4228 | -9/Recycling | Entered Scraptown 4228 | -9/Scraptown | Accompanied by 4 allies 4546 | -9/Scraptown | Visited IN-MT5's Study 4589 | -9/Scraptown | Visited Cyclists 4981 | -9/Scraptown | Discovered new exit (range 11) 5189 | -9/Scraptown | Visited Junk Repository 5266 | -9/Scraptown | Visited Spacefarers 5288 | -9/Scraptown | Visited UFD Registry 5288 | -9/Scraptown | Registered with UFD as "Wavegunner" 5380 | -9/Scraptown | Entered Cyclist Reading Room 5465 | -9/Scraptown | Visited A0-MCA Data Center 5489 | -9/Scraptown | Visited Sword Containment 5513 | -9/Scraptown | Visited Abandonware Association 5524 | -9/Scraptown | Learned abandonware demo "OVRCLOCK.EXE" 5529 | -9/Scraptown | Learned abandonware demo "REPAIR.EXE" 5529 | -9/Scraptown | Learned abandonware demo "KABOOM.EXE" 5564 | -9/Scraptown | Visited Observation Area 5583 | -9/Scraptown | Visited Analyses Database 5618 | -9/Scraptown | Visited Scrap Suit Storage 5635 | -9/Scraptown | Visited Modified Component R&D 5696 | -9/Scraptown | Visited Junk Repository 5789 | -9/Scraptown | Visited Scrapoid Pod Storage 5817 | -9/Scraptown | Visited Cartography Club 6352 | -9/Scraptown | Learned location of Upper Caves (-5) 6352 | -9/Scraptown | Learned location of Cetus (-6) 6352 | -9/Scraptown | Learned 24 Factory zone layouts 6352 | -9/Scraptown | Learned 4 Access zone layouts 6352 | -9/Scraptown | Learned 12 Lower Caves zone layouts 6352 | -9/Scraptown | Learned 16 Lower Caves zone layouts 6352 | -9/Scraptown | Learned 20 Proximity Caves zone layouts 6352 | -9/Scraptown | Learned 24 Proximity Caves zone layouts 6352 | -9/Scraptown | Learned 4 Hub_04(d) zone layouts 6352 | -9/Scraptown | Learned 4 Armory zone layouts 6352 | -9/Scraptown | Learned Research emergency access door positions 6352 | -9/Scraptown | Learned location of 1 exit from Research 6352 | -9/Scraptown | Learned location of 2 exits from Proximity Caves 6352 | -9/Scraptown | Identified exit to Factory 6599 | -9/Scraptown | Given an A rating by A0-MCA 6602 | -9/Scraptown | Found A0-MCA's Component Scanner 8115 | -9/Scraptown | Visited Red Mages 8737 | -9/Scraptown | Met Optimus 8737 | -9/Scraptown | Accepted into 0bPrime 8820 | -9/Scraptown | Entered Factory 8820 | -6/Factory | Accompanied by 4 allies 8820 | -6/Factory | Evolved 6 slots: Power x1, Propulsion x2, Utility x3 8821 | -6/Factory | Identified exit to Factory 8821 | -6/Factory | Identified exit to Lower Caves 8821 | -6/Factory | Identified exit to Extension 8958 | -6/Factory | Lost 4 allies 9247 | -6/Factory | Build established: Skirmisher 9609 | -6/Factory | Loaded intel: 8 recycling unit locations 9720 | -6/Factory | Scrapoids reinforcements arrived? 9767 | -6/Factory | Spotted B-75 Beast 9796 | -6/Factory | Learned location of Protoforge (-2) 10114 | -6/Factory | Build established: Scavenger-Skirmisher 10644 | -6/Factory | Lost 5 parts (1p2n2w) 10707 | -6/Factory | Entered Extension 10783 | -6/Extension | Rescued a captive Derelict 10856 | -6/Extension | Build established: Skirmisher 10958 | -6/Extension | Rescued a captive Derelict 10975 | -6/Extension | Rescued a captive Derelict 10976 | -6/Extension | Rescued a captive Derelict 10993 | -6/Extension | Rescued A7 11245 | -6/Extension | Disrupted transfer network 11442 | -6/Extension | Spotted B-75 Beast 11466 | -6/Extension | Allies destroyed B-75 Beast 11468 | -6/Extension | Spotted B-75 Beast 11503 | -6/Extension | Destroyed B-75 Beast 11525 | -6/Extension | Lost 4 allies 11864 | -6/Extension | Loaded intel: 1 recycling unit location 12187 | -6/Extension | Build established: Commander-Skirmisher 12200 | -6/Extension | Discovered exit to Factory (range 10) 12201 | -6/Extension | Discovered new exit (range 6) 12251 | -6/Extension | Entered Cetus 12251 | -6/Cetus | Accompanied by 13 allies (A7) 12256 | -6/Cetus | Acquired a Cetus Manufacturing Module code from A7 12267 | -6/Cetus | Spotted Cetus Guard 12269 | -6/Cetus | Spotted Cetus Guard 12273 | -6/Cetus | Spotted Cetus Guard 12276 | -6/Cetus | Allies destroyed Cetus Guard 12276 | -6/Cetus | Spotted Cetus Guard 12283 | -6/Cetus | Allies destroyed Cetus Guard 12292 | -6/Cetus | Allies destroyed Cetus Guard 12298 | -6/Cetus | Allies destroyed Cetus Guard 12407 | -6/Cetus | Started Cetus Manufacturing Module 12432 | -6/Cetus | Manufactured an Enhanced Grunt 12457 | -6/Cetus | Manufactured an Enhanced Grunt 12482 | -6/Cetus | Manufactured an Enhanced Grunt 12506 | -6/Cetus | Discovered new exit (range 21) 12507 | -6/Cetus | Manufactured an Enhanced Grunt 12532 | -6/Cetus | Manufactured an Enhanced Grunt 12541 | -6/Cetus | Spotted Cetus Guard 12541 | -6/Cetus | Spotted Cetus Guard 12544 | -6/Cetus | Spotted Cetus Guard 12545 | -6/Cetus | Spotted Cetus Guard 12547 | -6/Cetus | Allies destroyed Cetus Guard 12548 | -6/Cetus | Discovered exit to Factory (range 22) 12549 | -6/Cetus | Destroyed Cetus Guard 12552 | -6/Cetus | Allies destroyed Cetus Guard 12557 | -6/Cetus | Allies destroyed Cetus Guard 12572 | -6/Cetus | Met Revision 17 12665 | -6/Cetus | Build established: Commander-Tank 12762 | -6/Cetus | Murdered A7 12767 | -6/Cetus | Extracted ID and sensor layout for unrecognized location from A7's data core 12866 | -6/Cetus | Entered Archives 12866 | -6/Archives | Accompanied by 15 allies 12912 | -6/Archives | Discovered new exit (range 22) 12937 | -6/Archives | Discovered exit to Factory (range 21) 12939 | -6/Archives | Discovered new exit (range 17) 12999 | -6/Archives | Entered Hub_04(d) 12999 | -6/Hub_04(d) | Accompanied by 14 allies 13052 | -6/Hub_04(d) | Discovered exit to Factory (range 10) 13150 | -6/Hub_04(d) | Disrupted transfer network 13184 | -6/Hub_04(d) | Lost 3 allies 13212 | -6/Hub_04(d) | Network Hub disabled 13248 | -6/Hub_04(d) | System corruption reached 10% 13258 | -6/Hub_04(d) | Entered Factory 13258 | -5/Factory | Accompanied by 8 allies 13258 | -5/Factory | Evolved 2 slots: Utility x2 13372 | -5/Factory | Loaded intel: 8 recycling unit locations 13422 | -5/Factory | Discovered new exit (range 10) 13449 | -5/Factory | Build established: Scavenger-Tank 13478 | -5/Factory | Identified exit to Factory 13840 | -5/Factory | Lost 3 allies 14504 | -5/Factory | Garrison activated, responded to threat 14671 | -5/Factory | Scrapoids reinforcements arrived? 14758 | -5/Factory | First assault squad dispatched 14859 | -5/Factory | Scraphulk reinforcements arrived? 14899 | -5/Factory | Discovered exit to Factory (range 16) 14968 | -5/Factory | Lost 6 allies 15079 | -5/Factory | Scraphulk reinforcements arrived 15141 | -5/Factory | Destroyed 10 combat bots 15143 | -5/Factory | Lost 5 parts (1p1n1u2w) 15265 | -5/Factory | High security lockdown imminent 15328 | -5/Factory | Found Active Sensor Suite 15345 | -5/Factory | High security lockdown engaged 15363 | -5/Factory | Entered another Factory area 15363 | -4/Factory | Accompanied by 1 ally 15363 | -4/Factory | Evolved 2 slots: Weapon x2 15436 | -4/Factory | Identified exit to Upper Caves 15530 | -4/Factory | Discovered new exit (range 17) 15655 | -4/Factory | Build established: Scavenger-Executioner 15863 | -4/Factory | First assault squad dispatched 15985 | -4/Factory | High security lockdown imminent 16029 | -4/Factory | Entered Upper Caves 16029 | -4/Upper Caves | Spotted B-86 Titan 16059 | -4/Upper Caves | Destroyed B-86 Titan 16086 | -4/Upper Caves | Attracted the attention of an 0b10 checkpoint 16086 | -4/Upper Caves | Lost 7 parts (2p1n2u2w) 16726 | -4/Upper Caves | Learned Research terminal intel 16771 | -4/Upper Caves | Learned Research security intel 17457 | -4/Upper Caves | Discovered new exit (range 9) 17609 | -4/Upper Caves | Identified exit to Upper Caves 17617 | -4/Upper Caves | Entered another Upper Caves area 17739 | -4/Upper Caves | Discovered new exit (range 20) 17768 | -4/Upper Caves | Identified exit to Research 17777 | -4/Upper Caves | Learned Research emergency access door positions 18070 | -4/Upper Caves | Attracted the attention of an 0b10 checkpoint 19030 | -4/Upper Caves | Lost 6 parts (3p1n2w) 19131 | -4/Upper Caves | Spotted B-86 Titan 19887 | -4/Upper Caves | Discovered new exit (range 7) 19941 | -4/Upper Caves | Identified exit to Zhirov 19943 | -4/Upper Caves | Entered Zhirov 19943 | -4/Zhirov | Discovered new exit (range 3) 19975 | -4/Zhirov | Met Zhirov 20004 | -4/Zhirov | Learned location of Testing (-2) 20004 | -4/Zhirov | Learned location of Command (-1) 20018 | -4/Zhirov | Zhirov requested help retrieving the SGEMP Prototype 20043 | -4/Zhirov | Found Alien Artifact 20043 | -4/Zhirov | Identified Integrated Dissipator 20043 | -4/Zhirov | Installed Integrated Dissipator, increased core heat dissipation (+20) 20066 | -4/Zhirov | Found Alien Artifact 20208 | -4/Zhirov | Identified exit to Proximity Caves 20212 | -4/Zhirov | Entered Proximity Caves 20403 | -3/Proximity Caves | Build established: Scavenger-Skirmisher 20431 | -3/Proximity Caves | Spotted B-86 Titan 20813 | -3/Proximity Caves | Entered Research 20813 | -3/Research | Evolved 2 slots: Utility x2 20814 | -3/Research | Identified exit to Research 20817 | -3/Research | Loaded intel: 23 terminal locations 21013 | -3/Research | Revision forces began assault on 0b10 21044 | -3/Research | Identified exit to Armory 21044 | -3/Research | Identified exit to Quarantine 21078 | -3/Research | Met up with Revision 17++ 21104 | -3/Research | Lost 3 parts (1n2w) 21320 | -3/Research | Loaded intel: 5 recycling unit locations 21513 | -3/Research | Research terminal network offline 21684 | -3/Research | Build established: Scavenger-Executioner 21787 | -3/Research | Spotted Striker 21829 | -3/Research | Lost 7 allies 21837 | -3/Research | Spotted Striker 21839 | -3/Research | Spotted Striker 21840 | -3/Research | Spotted Striker 21857 | -3/Research | Destroyed Striker 21867 | -3/Research | Destroyed Striker 22096 | -3/Research | Spotted B-86 Titan 22170 | -3/Research | Found Prototype Device 22170 | -3/Research | Identified Exp. Focal Shield 22402 | -3/Research | Spotted Striker 22410 | -3/Research | Destroyed Striker 22446 | -3/Research | Lost 3 parts (1u2w) 22595 | -3/Research | Entered Armory 22596 | -3/Armory | Met VL-GR5, who suggested a friendly competition 22941 | -3/Armory | Lost the competition with VL-GR5 23111 | -3/Armory | VL-GR5 left a parting gift on exiting Armory 23128 | -3/Armory | Identified Transdimensional Reconstructor 23128 | -3/Armory | Warped through subspace to slip node 23128 | -3/Armory | Discovered new exit (range 1) 23258 | -3/Armory | Entered Lab 23258 | -3/Lab | Discovered exit to Research (range 9) 23275 | -3/Lab | Hidden lab's door opened automatically 23275 | -3/Lab | Sensor layout match revealed 23276 | -3/Lab | Gained access to the hidden lab's interior 23374 | -3/Lab | Found Alien Artifact 23374 | -3/Lab | Identified Core Regenerator 23374 | -3/Lab | Used Core Regenerator, restored core integrity (+195) 23383 | -3/Lab | Found Integrated Dissipator 23383 | -3/Lab | Installed Integrated Dissipator, increased core heat dissipation (+20) 23465 | -3/Lab | Found Prototype Hackware 23469 | -3/Lab | Found Prototype Device 23469 | -3/Lab | Identified AEGIS Remote Shield 23474 | -3/Lab | Found Prototype Energy Gun 23489 | -3/Lab | Identified Tachyon Dispersion Ray 23618 | -3/Lab | Found Tachyon Dispersion Ray 23662 | -3/Lab | Found Transdimensional Reconstructor 23709 | -3/Lab | Entered Research 23709 | -2/Research | Evolved 2 slots: Power x1, Utility x1 23857 | -2/Research | Identified Quantum Router 23961 | -2/Research | Found Prototype Launcher 23961 | -2/Research | Identified Point Singularity Launcher 24109 | -2/Research | Identified exit to Testing 24109 | -2/Research | Central database locked down 24151 | -2/Research | Build established: Hacker-Executioner 24196 | -2/Research | Entered Testing 24302 | -2/Testing | Found Prototype Launcher 24302 | -2/Testing | Identified Hellfire Missile Launcher 24306 | -2/Testing | Found Faulty Hellfire Missile Launcher 24309 | -2/Testing | Found Hellfire Missile Launcher 24471 | -2/Testing | Discovered new exit (range 10) 24552 | -2/Testing | Found Tachyon Dispersion Ray 24641 | -2/Testing | Spotted Fortress 24751 | -2/Testing | Discovered new exit (range 6) 24751 | -2/Testing | Discovered new exit (range 6) 24760 | -2/Testing | Entered Protoforge 24769 | -2/Protoforge | Superfortress began startup sequence 24780 | -2/Protoforge | Spotted Hotshot 24780 | -2/Protoforge | Spotted Hotshot 24847 | -2/Protoforge | Destroyed Hotshot 24847 | -2/Protoforge | Destroyed Hotshot 24988 | -2/Protoforge | Build established: Executioner 25168 | -2/Protoforge | Spotted Hotshot 25212 | -2/Protoforge | Spotted AP7-3 25214 | -2/Protoforge | Spotted AP7-3 25215 | -2/Protoforge | Warped through subspace 25308 | -2/Protoforge | Found Prototype Protection 25308 | -2/Protoforge | Identified Cep. Core Shell 25322 | -2/Protoforge | Found Prototype Energy Gun 25322 | -2/Protoforge | Identified Cep. Variable Chargecaster 25323 | -2/Protoforge | System corruption reached 10% 25325 | -2/Protoforge | Found Cep. Variable Chargecaster 25341 | -2/Protoforge | Found Prototype Device 25341 | -2/Protoforge | Identified Cep. Recoil Nullifier 25456 | -2/Protoforge | Lost 11 parts (3p2n3u3w) 25525 | -2/Protoforge | Spotted V893-b 25525 | -2/Protoforge | Spotted V205-z 25525 | -2/Protoforge | Spotted V541-i 25525 | -2/Protoforge | Spotted V154-b 25579 | -2/Protoforge | Spotted Immortal 25579 | -2/Protoforge | Spotted Immortal 25592 | -2/Protoforge | Spotted Decapitator 25592 | -2/Protoforge | Spotted Decapitator 25592 | -2/Protoforge | Spotted Decapitator 25592 | -2/Protoforge | Spotted Decapitator 25609 | -2/Protoforge | Spotted Immortal 25617 | -2/Protoforge | Spotted Hotshot 25620 | -2/Protoforge | Spotted Immortal 25620 | -2/Protoforge | Destroyed Hotshot 25643 | -2/Protoforge | Destroyed Immortal 25650 | -2/Protoforge | Destroyed Immortal 25652 | -2/Protoforge | Destroyed Hotshot 25742 | -2/Protoforge | Build established: Scavenger-Executioner 25765 | -2/Protoforge | Spotted V678-y 25796 | -2/Protoforge | System corruption reached 30% 25811 | -2/Protoforge | Core integrity fell below 50% 25820 | -2/Protoforge | Found Cep. Core Shell 25822 | -2/Protoforge | Found Cep. Core Shell 25824 | -2/Protoforge | Found Cep. Core Shell 25843 | -2/Protoforge | Spotted EXE-6 25844 | -2/Protoforge | Spotted EXE-6 25857 | -2/Protoforge | Lost 13 parts (2p3n3u5w) 25869 | -2/Protoforge | UFD initiated attack on Protoforge 25869 | -2/Protoforge | Loaded intel: 3 recycling unit locations 25905 | -2/Protoforge | Optimus greeted in Protoforge 25910 | -2/Protoforge | Found Exp. Core Analyzer 25913 | -2/Protoforge | Found Exp. Kinecellerator 25918 | -2/Protoforge | Found Cep. XC Strikerail 25920 | -2/Protoforge | Found Exp. Armor Integrity Analyzer 25929 | -2/Protoforge | Spotted Overlord 25960 | -2/Protoforge | Lost 8 allies 25966 | -2/Protoforge | Fabricated Lrg. Storage Unit (x1) 25984 | -2/Protoforge | Spotted Decapitator 25984 | -2/Protoforge | Spotted Decapitator 25997 | -2/Protoforge | Spotted EXE-6 26004 | -2/Protoforge | Met 7R-MNS 26010 | -2/Protoforge | Spotted EXE-6 26091 | -2/Protoforge | Found Exp. Core Analyzer 26145 | -2/Protoforge | P-80 Master assimilated allied YP-CWH(E) 26209 | -2/Protoforge | Lost 51 allies 26212 | -2/Protoforge | Build established: Scavenger-Mutant 26237 | -2/Protoforge | Spotted Executioner 26242 | -2/Protoforge | Spotted Striker 27555 | -2/Protoforge | Spotted Striker 27568 | -2/Protoforge | Spotted Executioner 27605 | -2/Protoforge | Spotted Striker 27618 | -2/Protoforge | Spotted Executioner 27655 | -2/Protoforge | Lost 7 allies 27858 | -2/Protoforge | Build established: Scavenger-Sprinter 28549 | -2/Protoforge | Spotted Striker 28549 | -2/Protoforge | Spotted Striker 28569 | -2/Protoforge | Spotted Striker 28578 | -2/Protoforge | Spotted Striker 28580 | -2/Protoforge | P-80 Master assimilated allied 02FDU-D 28586 | -2/Protoforge | Spotted Executioner 28645 | -2/Protoforge | Lost 11 allies 28846 | -2/Protoforge | Build established: Scavenger-Mutant 29297 | -2/Protoforge | Found UFD Drillbomb 29365 | -2/Protoforge | Spotted Striker 29397 | -2/Protoforge | Spotted Executioner 29445 | -2/Protoforge | Lost 6 allies 30433 | -2/Protoforge | UFD reported confirmed Drillbomb installation 30443 | -2/Protoforge | Spotted Striker 30537 | -2/Protoforge | Installed UFD Drillbomb at designated target 30537 | -2/Protoforge | UFD reported confirmed Drillbomb installation 30544 | -2/Protoforge | Spotted Executioner 30595 | -2/Protoforge | Attacked by UFD forces 30597 | -2/Protoforge | Self-destructed Last Messages --------------- 30591_ N-04 Retriever inserts Prototype Ballistic Cannon into Forge Plexus. 30592_ N-04 Retriever inserts Lgt. Quantum Reactor into Forge Plexus. 30594_ Sneak attack on Lugger 733. 30594_ Lugger 733 destroyed. 30595_ 0bP_NET: Wavegunner betrays us! Get the scumbolt! 30595_ Penetrated by Slug. 30595_ Lgt. Deuterium Engine destroyed. 30595_ Slug penetrates Reinforced Barrier. 30595_ Penetrated by Slug. 30595_ Cep. Core Shell destroyed. 30595_ Penetrated by Slug. 30595_ Critical hit (Destroy). 30595_ Penetrated by Slug. 30595_ Critical hit (Destroy). 30595_ HV Slug penetrates Reinforced Barrier. 30596_ Impulse Thruster Array destroyed. 30596_ Critical hit (Burn: +50). 30597_ Penetrated by Slug. 30597_ Critical hit (Destroy). Map ----- +----------------------------------------------------+ | """""""""""""""""" %%%%%%%% " "#?#"""""#?????? | | """""""""""""""""" %% %%%%% " "#?#######?????? | | """""""""""""""""""% %%=!%%%% #?????????????? | | """""""""""""""""""%% %%%% %" "#?????????????? | | """""""""""""""""""% %%s%%% % "#?????????????? | | """""""""""""""""""% s%%%%%% #?????????????? | | """""""""""""""""""%&% %%%%% % % % #?????????????? | | """""""""""""""""""%%%% %% [ ##????????????? | | """""""""""""""""""%%%% %%%%%%%"% #????????????? | | """""""""""""""""""%%%% %%%%% =" #????????????? | | """""""""""""""""""%%%%%%%%%% % ##????????????? | | """""""""""""""""" %% %% %%%% #?????????????? | | """"""""""""""""""%%s%%%% % !% #?????????????? | | """"""""""""""""""%%%% %% % % #?????????????? | | """""""""""""""""n % %%%%s % % #?????????????? | | """"""""""""""""%%%"%%%% js %%" #?????????????? | | """""""""""""""% %% % %s%%""% #?????????????? | | """"""""""""""n %% %% %% % #?????????????? | | """""""""""""%% %% % % %%%% % #?????????????? | | """""""""""" " %% %%%% %%%%% #?????????????? | | """""""""%%%%%% %% %%%% % %% !#??##?????????? | | %%%=%%%n%m%% %% %% % %%"% %% %" #?# ##????????? | | %%%%%n%%%%%%%%%%% % %%% %%% = % ## ####?????? | | %%%%%%%%%% %%%%%% %%%% % %% %% %%#% #?????? | | %%%%%%%%%%%% %s%s %%% %%%%=%% %| << ######?? | | %%%%%%% %%%%%%j%%%%% % %=@ %% % %% %%= #?? | | % % %%%%%% %%sj%%s % % !%%=% %% #######?? | | %% %%% %%%%% s % s % %! % %"""% <<% * #???? | | % %%%% % % E" % %=<[# ## #???? | | % % % E SS % % << #?##???? | | % SS" %#### ##??????? | | % % "! #???# #???????? | | % " #????##???????? | | #?????????????? | | " #?????????????? | | " "" "#?????????????? | | ###################### % ###########?????????????? | | ?????????????????#"" "#???????????????????? | | ???????????????###" "###?????????????????? | | ???????????????#"" ""#?????????????????? | | ???????????????#"" ""#?????????????????? | | ???????????????#"" ""#?????????????????? | | ???????????????#"Y Y"#?????????????????? | | ???????????????#"" ""#?????????????????? | | ???????????????#"" ""#?????????????????? | | ???????????????#"" ""#?????????????????? | | ???????????????###" "###?????????????????? | | ?????????????????# ""#???????????????????? | | ?????????????????# #"""Y"""###???????????????????? | | ?????????????????# #"""""""#?????????????????????? | +----------------------------------------------------+ Best States ------------- Heat Dissipation 161 Coolant Potential 100 Energy Generation 59 Energy Capacity 1330 Matter Stores 300 Matter Capacity 300 Sight Range 23 Robot Scan Range 20 Terrain Scan Range 18 Terrain Scan Density 10 Base Temperature (-) 100 Armor Coverage 1200 Resistance: KI 30 Core Shielding 90 Propulsion Shielding 90 Utility Shielding 90 Weapon Shielding 90 Weapon Cycling 20 Evasion (%) 64 Targeting Accuracy 8 Target Analysis 8 Core Analysis 12 Armor Integrity Analysis 50 Recoil Reduction 4 Kinecelleration 30 Salvage Targeting 2 Offensive Hacking 28 Defensive Hacking 25 Item Schematics ----------------- Lrg. Storage Unit | -9/Recycling | Hacked Hcp. Storage Unit | -9/Recycling | Hacked Assault Drone Bay | -4/Zhirov | Free Exp. Heat Sink | -4/Zhirov | Free Exp. Optical Array | -4/Zhirov | Free Imp. Arc Thrower | -4/Zhirov | Free Robot Schematics ------------------ None Fabricated ------------ Lrg. Storage Unit | x1 | -2/Protoforge Repaired ---------- Lgt. Treads | 15% | -10/Materials Alien Tech Used ----------------- Integrated Dissipator Transdimensional Reconstructor Core Regenerator Achievements -------------- None Challenges ------------ None Game ------ Seed JammingMiningAccelerator Manual? 0 Play Time 04:00:58 Cumulative 406.5 hours Start 2025.07.28 @ 11:45:46 End 2025.07.28 @ 23:38:40 Sessions 8 Manual Loads 0 Difficulty Rogue Special Mode None Game No. 268 Rogue 268 Adventurer 0 Explorer 0 Win Type - Total 28 Types 22/0/4/2/0/0/0/0/0/0 Lore% 91 Gallery% 82 Achievement% 68 Wizard Run 0 Options --------- Layout 0 ASCII 1 Keyboard 1 Movement Arrows Keybinds 0 Fullscreen 2 Font 18/Terminus Map View 76x50 Zoom Use 0% Tactical HUD 1 Map Filters NONE Filters NONE Steam 1 RUN: d175aeeb-b369-47c1-bf19-99eab7596d41